[Event "44th Chess Olympiad Open 2022"]
[Site "Chennai"]
[Date "2022.08.05"]
[Round "7.33"]
[White "Adebayo, Adegboyega"]
[Black "Hovhannisyan, Mher"]
[Result "0-1"]
[ECO "D02"]
[WhiteElo "2313"]
[BlackElo "2420"]
[Annotator "TA"]
[PlyCount "126"]
[EventDate "2022.07.29"]
[EventType "team-tourn"]
[EventCountry "IND"]
[SourceTitle "playchess.com"]
[Source "ChessBase"]
[SourceQuality "1"]
[WhiteTeam "Nigeria"]
[BlackTeam "Belgium"]
[WhiteTeamCountry "NGR"]
[BlackTeamCountry "BEL"]
[TimeControl "40/5400+30:1800+30"]

{[%evp 12,126,8,0,5,3,34,33,26,30,23,32,27,36,35,23,16,13,16,10,12,4,10,3,28,24,26,20,29,10,17,14,21,0,0,0,0,0,9,0,0,0,11,3,8,0,4,0,0,0,0,0,0,-38,-38,-39,-21,-14,-20,-54,-60,-60,-60,-58,-46,-55,-52,-46,-54,-60,0,0,0,0,0,0,0,0,0,0,0,-128,-128,-128,-128,-1904,-1785,-1631,-1075,-1504,-1508,-1554,-1589,-1522,-1357,-1035,-826,-625,-421,-12818,-12818,-12820,-12822,-12823,-12824,-12824,-12824,-12825,-12824,-12803,-12821,-11519,-12209,-6299,-1864,-1372,-199]} 1. d4 {[%emt 0:00:03]} d5 {[%emt 0:00:13]} 2. Bf4 {[%emt 0:00:29]} Nf6 {[%emt 0:00:19]} 3. e3 {[%emt 0:00:14]} g6 {[%emt 0:00:10]} 4. Nf3 {[%emt 0:00:15]} Bg7 {[%emt 0:00:18]} 5. Be2 {[%emt 0:00:10]} O-O {[%emt 0:01:43]} 6. O-O {[%emt 0:01:29]} c5 {[%emt 0:01:27]} 7. c3 {[%emt 0:00:24]} Nc6 {[%emt 0:01:44] D02: 1 d4 d5 2 Nf3 sidelines, including 2...Nf6 3 g3 and 2...Nf6 3 Bf4.} 8. Nbd2 {[%emt 0:03:39]} Nd7 {[%emt 0:18:23]} 9. Qb3 {[%emt 0:05:21]} cxd4 {[%emt 0:10:59] White is slightly better.} 10. cxd4 {[%emt 0:01:08] [#]} e5 $146 {[%emt 0:06:33]} ({Predecessor:} 10... Nb6 11. Rfc1 Bg4 12. h3 Bxf3 13. Nxf3 Rc8 14. Rc5 e6 15. Rac1 Qe7 16. Bb5 e5 17. Nxe5 Nxe5 18. Rxc8 Rxc8 19. Rxc8+ Nxc8 20. dxe5 Bxe5 21. Qxd5 Bxb2 {1-0 (62) Renner,C (2375)-Velicka,P (2409) Austria 2014}) 11. dxe5 {[%emt 0:01:42]} Ndxe5 {[%emt 0:01:18]} 12. Nxe5 {[%emt 0:01:17]} Nxe5 {[%emt 0:00:05]} 13. Nf3 {[%emt 0:01:42]} Nc6 {[%emt 0:12:15]} 14. Rfd1 {[%emt 0:10:01]} Qb6 {[%emt 0:01:25]} 15. Qxb6 {[%emt 0:00:44]} axb6 {[%emt 0:00:04]} 16. Nd4 {[%emt 0:00:25]} Nxd4 {[%emt 0:09:04]} 17. exd4 {[%emt 0:00:20]} Re8 {[%emt 0:05:11]} 18. Bb5 {[%emt 0:02:47]} Re4 {[%emt 0:02:31][%csl LRd4,LRf4]} 19. Be3 {[%emt 0:02:18]} Bf6 {[%emt 0:06:13]} 20. a4 {[%emt 0:05:53]} Re7 {[%emt 0:03:27]} 21. b3 {[%emt 0:05:33]} Bd7 {[%emt 0:00:29]} 22. Bd3 {[%emt 0:02:10]} Kg7 {[%emt 0:04:00]} 23. h3 {[%emt 0:01:35]} h5 {[%emt 0:00:44]} 24. Rac1 {[%emt 0:01:07]} Ree8 {[%emt 0:05:02]} 25. Rc2 {[%emt 0:10:29]} h4 {[%emt 0:01:48]} 26. Kf1 {[%emt 0:04:37][%cal Bg1f1,Bf1e1,Be1d2,Bd2c3][%mdl 32]} Bc6 {[%emt 0:00:22]} 27. Be2 {[%emt 0:01:23]} Re6 {[%emt 0:01:47]} 28. Ke1 {[%emt 0:02:04]} Rae8 {[%emt 0:00:43]} 29. Kd2 {[%emt 0:00:51]} Be7 {[%emt 0:01:48]} 30. Kc3 {[%emt 0:03:22]} f5 {[%emt 0:00:24]} 31. Bd3 {[%emt 0:06:34]} Bf6 {[%emt 0:01:35]} 32. Bf4 {[%emt 0:04:37]} Rc8 {[%emt 0:01:01]} 33. Be5 {[%emt 0:01:10]} Bxe5 {[%emt 0:02:24]} 34. dxe5 {[%emt 0:00:32]} d4+ {[%emt 0:00:33]} 35. Kxd4 {[%emt 0:01:40]} Rd8+ {[%emt 0:00:03][%mdl 64] Deflection} 36. Kc3 $1 {[%emt 0:01:40]} Rxe5 {[%emt 0:00:08]} 37. f3 {[%emt 0:00:41]} Rc5+ {[%emt 0:00:59]} 38. Kb2 {[%emt 0:00:30]} Rcd5 {[%emt 0:00:06]} 39. Rcd2 {[%emt 0:00:27]} Kf6 {[%emt 0:00:09]} 40. Kc3 {[%emt 0:03:30]} Kg5 {[%emt 0:02:06]} (40... Ke5 $1 $15) 41. Bc4 $11 {[%emt 0:31:45]} Rxd2 {[%emt 0:04:29]} 42. Rxd2 {[%emt 0:00:00]} Rxd2 {[%emt 0:01:58]} 43. Kxd2 {[%emt 0:00:00][%mdl 4096] Endgame KB-KB} Kf4 {[%emt 0:00:02]} 44. Ke2 $1 {[%emt 0:00:00]} Kg3 {[%emt 0:00:26]} 45. Kf1 {[%emt 0:00:00]} g5 {[%emt 0:02:22] Threatens to win with ...g4.} 46. Be6 {[%emt 0:00:00]} (46. Bb5 $1 $11 {keeps the balance.} Bxb5+ 47. axb5) 46... Kf4 $17 {[%emt 0:04:15]} 47. Ke2 {[%emt 0:00:00]} b5 {[%emt 0:05:08]} 48. axb5 {[%emt 0:00:00][%mdl 8192] Loses the game.} (48. a5 $17) 48... Bxb5+ $19 {[%emt 0:00:05] Black is clearly winning.} 49. Kf2 {[%emt 0:00:00]} Ke5 {[%emt 0:05:47]} 50. Bc8 {[%emt 0:00:00]} b6 {[%emt 0:01:02] White must now prevent ...Bd3.} 51. Ke3 {[%emt 0:03:00]} Bf1 {[%emt 0:03:49]} 52. Kf2 {[%emt 0:09:06] [#]} Bd3 $1 {[%emt 0:00:11] aiming for ...f4.} 53. Ke3 {[%emt 0:00:10]} Bc2 {[%emt 0:00:07]} 54. b4 {[%emt 0:00:09]} Bb1 {[%emt 0:00:20]} 55. Ba6 {[%emt 0:04:51]} (55. Bb7 $142 f4+ 56. Kd2) 55... f4+ {[%emt 0:00:21]} 56. Kd2 {[%emt 0:00:27] [#]} Kd4 $1 {[%emt 0:00:01]} 57. Be2 {[%emt 0:02:11]} Bf5 {[%emt 0:00:33]} 58. Bb5 {[%emt 0:00:36]} Be6 {[%emt 0:00:16]} 59. Ba6 {[%emt 0:00:49]} Bd5 {[%emt 0:00:24]} 60. Bb5 {[%emt 0:00:15]} Bc4 {[%emt 0:00:16]} 61. Bd7 {[%emt 0:00:09]} Bf1 {[%emt 0:00:35]} 62. Ke1 {[%emt 0:00:54]} Ba6 {[%emt 0:01:00] Hoping for ...Kc4.} ({Weaker is} 62... Bxg2 63. Kf2 Bh1 64. Bc6 $11) 63. Kd2 {[%emt 0:02:45]} Ke5 $2 {[%emt 0:01:25] Weighted Error Value: White=0.36/Black=0.07 (flawless)} (63... Kc4 64. b5 Bxb5) 0-1

[Event "44th Chess Olympiad Open 2022"]
[Site "Chennai"]
[Date "2022.08.05"]
[Round "7.33"]
[White "Balogun, Oluwafemi"]
[Black "Maerevoet, Sim"]
[Result "1-0"]
[ECO "B45"]
[WhiteElo "2274"]
[BlackElo "2409"]
[Annotator "TA"]
[PlyCount "101"]
[EventDate "2022.07.29"]
[EventType "team-tourn"]
[EventCountry "IND"]
[SourceTitle "playchess.com"]
[Source "ChessBase"]
[SourceQuality "1"]
[WhiteTeam "Nigeria"]
[BlackTeam "Belgium"]
[WhiteTeamCountry "NGR"]
[BlackTeamCountry "BEL"]
[TimeControl "40/5400+30:1800+30"]

{[%evp 12,101,38,35,42,-12,-1,-16,46,41,653,650,652,653,1310,749,734,746,729,83,52,62,84,0,0,-292,-284,-272,-275,-268,-263,-260,37,-135,54,54,32,32,26,0,0,-91,-77,-87,330,323,430,408,476,455,478,460,471,469,454,450,431,514,514,497,504,482,418,473,488,491,559,543,568,564,732,837,836,839,1037,1107,1124,992,845,12826,5854,8312,12827,9543,1738,4264,1742,1469,12833,11518,1028,1129]} 1. e4 {[%emt 0:00:32]} c5 {[%emt 0:00:08]} 2. Nf3 {[%emt 0:00:30][%cal Bg1f3,Bf3d4,Bd4b5][%mdl 32]} e6 {[%emt 0:00:08]} 3. d4 {[%emt 0:02:00]} cxd4 {[%emt 0:00:07]} 4. Nxd4 {[%emt 0:00:14]} Nf6 {[%emt 0:00:12]} 5. Nc3 {[%emt 0:01:19]} Nc6 {[%emt 0:00:07]} 6. Ndb5 {[%emt 0:02:06]} Bc5 {[%emt 0:02:10]} 7. Bf4 {[%emt 0:16:11] Black must now prevent Nc7+. The main line 7.Bf4 scores better than 7.Nd6+.} O-O {[%emt 0:01:11] B45: Sicilian Four Knights.} 8. e5 {[%emt 0:05:06]} (8. Bc7 $14 Qe7 9. Bd6 Bxd6 10. Qxd6 (10. Nxd6 Ne8 $11)) 8... a6 $11 {[%emt 0:25:57]} 9. Nd6 {[%emt 0:06:03]} Bxd6 {[%emt 0:00:55]} (9... Ne8 $1 $11) 10. Qxd6 $14 {[%emt 0:02:06]} Qb6 $2 {[%emt 0:04:34][%mdl 8192]} (10... Ne8 $14 11. Qd2 Qa5) 11. exf6 $18 {[%emt 0:02:41][%cal Be5f6,Bf6g7][%mdl 32]} Qxb2 {[%emt 0:02:15] [#]} 12. Kd2 {[%emt 0:03:30]} Qxa1 {[%emt 0:08:39]} (12... Qb4 13. Qxb4) 13. fxg7 {[%emt 0:03:37][%csl Gd6][%cal Rg7f8] Active counter play!} Re8 {[%emt 0:01:43]} 14. Bh6 {[%emt 0:03:12] Intending Qf8+ and mate.} Ne7 {[%emt 0:01:58] [#]} 15. Be2 $146 {[%emt 0:02:11]} ({Predecessor:} 15. g4 a5 16. Bg2 Qb2 17. Rb1 Ra6 18. Qg3 Qxb1 19. Nxb1 e5 20. Be3 Re6 21. Nc3 {1-0 (30) Dubov,D (2703)-Basso,P (2521) Skopje 2019}) 15... Qxh1 $16 {[%emt 0:01:35]} 16. Ne4 {[%emt 0:00:26][%cal Re4f6]} Qa1 {[%emt 0:00:37] Against Nf6+} 17. g4 {[%emt 0:14:40]} (17. Bh5 $1 $16) 17... b5 $1 $11 {[%emt 0:06:07]} (17... Nd5 $2 18. Qf8+) (17... f5 $2 18. gxf5 a5 19. f6 $18) 18. c3 $2 {[%emt 0:14:47][%mdl 8192]} (18. g5 $1 $11 {and White stays safe.} Bb7 19. Nf6+ Qxf6 20. gxf6) 18... Qb2+ $19 {[%emt 0:06:24]} ({Don't blunder} 18... Qxa2+ $2 19. Kc1 Qa1+ 20. Kc2 Qa4+ 21. Kd3 Qc4+ 22. Ke3 Nd5+ 23. Kf3 Qxe4+ 24. Kxe4 $17) (18... Nd5 $2 19. Qf8+) 19. Kd3 {[%emt 0:01:34][%cal Re4f6]} Qb1+ {[%emt 0:03:02]} (19... Nd5 $2 {leads to mate.} 20. Qf8+) 20. Kd4 {[%emt 0:00:19][%cal Re4f6]} e5+ $1 {[%emt 0:06:02]} 21. Ke3 {[%emt 0:02:38][%cal Re4f6,Bd4e3,Be3d2,Bd2c1][%mdl 32] [#]} f5 $2 {[%emt 0:00:08]} ({Wrong is} 21... Qc1+ $2 22. Kd3 Qb1+ 23. Ke3 Nd5+ 24. Qxd5 Qc1+ 25. Qd2 Qxd2+ 26. Kxd2 $19) (21... Nd5+ $1 $19 22. Qxd5 Qc1+ 23. Qd2 Qxd2+ 24. Kxd2 Re6) 22. Nf6+ $14 {[%emt 0:02:54][%cal Be4f6,Bf6e8,Be8d6][%mdl 32]} Kf7 {[%emt 0:00:04]} 23. Nxe8 $40 {[%emt 0:02:36][%mdl 128] White wants to mate with Qf6+. Black needs to defend precisely. Really sharp!} f4+ {[%emt 0:04:32]} 24. Kd2 $1 {[%emt 0:00:48]} Qxa2+ {[%emt 0:00:29]} 25. Kc1 {[%emt 0:04:09] Qf6+ would kill now.} Qe6 {[%emt 0:03:46] Prevents Qf6+.} 26. Bf3 {[%emt 0:01:18]} (26. Bg5 $11 {keeps the balance.}) 26... Bb7 {[%emt 0:01:14]} 27. Qxe6+ {[%emt 0:03:09][%mdl 64] Remove Defender} dxe6 $4 {[%emt 0:00:12][%mdl 8192]} (27... Kxe6 $17 {and life is bright.} 28. Nc7+ Kf7 29. Bxb7 Ra7 30. Bd5+ Kg6 31. Nxb5 axb5) 28. Nd6+ $18 {[%emt 0:00:03]} Kg6 {[%emt 0:00:20]} 29. Bxb7 {[%emt 0:00:59]} Rd8 {[%emt 0:00:01]} 30. Be4+ {[%emt 0:00:28]} Kxh6 {[%emt 0:00:50]} 31. Nf7+ {[%emt 0:00:00]} Kxg7 {[%emt 0:00:03]} 32. Nxd8 {[%emt 0:00:00][%mdl 4096] Endgame} Kf6 {[%emt 0:02:16]} 33. h4 {[%emt 0:00:18]} h6 {[%emt 0:00:32]} 34. Kc2 {[%emt 0:02:24]} Nc8 {[%emt 0:00:45]} 35. Bb7 {[%emt 0:00:50][%csl LRa6,LRc8]} Nd6 {[%emt 0:00:11]} 36. Bxa6 {[%emt 0:00:08]} e4 {[%emt 0:02:35]} 37. Nb7 {[%emt 0:01:31]} Nc4 {[%emt 0:00:02] White is clearly winning.} 38. Kd1 {[%emt 0:00:26]} Ne5 {[%emt 0:00:21]} 39. Nd6 {[%emt 0:01:40]} Nxg4 {[%emt 0:00:37]} 40. Nxe4+ {[%emt 0:00:18]} Ke5 {[%emt 0:01:11]} 41. f3 {[%emt 0:30:13]} Ne3+ {[%emt 0:30:09]} 42. Ke2 {[%emt 0:01:04]} Nf5 {[%emt 0:00:37]} 43. h5 {[%emt 0:00:00]} Ng7 {[%emt 0:00:00]} 44. Bxb5 {[%emt 0:00:00]} Nxh5 {[%emt 0:00:00]} 45. c4 {[%emt 0:00:00][%cal Bc3c4,Bc4c5,Bc5c6][%mdl 32]} Ng7 {[%emt 0:00:00]} 46. c5 {[%emt 0:00:00]} Nf5 {[%emt 0:00:00]} 47. Be8 {[%emt 0:00:00]} Ne7 {[%emt 0:00:00]} 48. Kd3 {[%emt 0:00:00] Hoping for c6.} Nd5 {[%emt 0:00:00]} 49. Kc4 {[%emt 0:00:00] aiming for c6.} Nc7 {[%emt 0:00:00]} 50. Bh5 {[%emt 0:00:00]} Kf5 {[%emt 0:00:00]} 51. c6 {[%emt 0:00:00] Weighted Error Value: White=0.53/Black=0.81} 1-0

[Event "44th Chess Olympiad Open 2022"]
[Site "Chennai"]
[Date "2022.08.05"]
[Round "7.34"]
[White "Avila Pavas, Santiago"]
[Black "Tan, Jun Ying"]
[Result "1-0"]
[ECO "B62"]
[WhiteElo "2453"]
[BlackElo "2191"]
[Annotator "TA"]
[PlyCount "127"]
[EventDate "2022.07.29"]
[EventType "team-tourn"]
[EventCountry "IND"]
[SourceTitle "playchess.com"]
[Source "ChessBase"]
[SourceQuality "1"]
[WhiteTeam "Colombia"]
[BlackTeam "Malaysia"]
[WhiteTeamCountry "COL"]
[BlackTeamCountry "MAS"]
[TimeControl "40/5400+30:1800+30"]

{[%evp 13,127,0,41,45,32,31,49,14,13,0,0,6,35,33,102,111,216,225,221,215,224,232,238,219,231,227,255,251,251,257,258,224,222,218,278,173,200,220,221,197,186,205,250,203,260,254,317,320,300,266,339,253,391,285,346,312,466,262,246,246,210,180,284,310,326,329,300,293,402,377,478,503,664,654,640,545,553,544,1004,981,953,927,954,952,919,869,959,959,818,797,6123,5995,29970,29971,29969,29970,29972,29972,29972,29973,29969,29971,29973,29973,29975,29976,29983,29979,29984,29985,29989,29990,29990,29991,29991,29992]} 1. e4 {[%emt 0:00:05]} c5 {[%emt 0:00:20]} 2. Nf3 {[%emt 0:00:07]} Nc6 {[%emt 0:00:08]} 3. d4 {[%emt 0:00:08]} cxd4 {[%emt 0:00:03]} 4. Nxd4 {[%emt 0:00:09]} Nf6 {[%emt 0:00:06]} 5. Nc3 {[%emt 0:00:08]} d6 {[%emt 0:00:03]} 6. Bg5 {[%emt 0:00:08]} e6 {[%emt 0:00:52]} 7. Qd3 {[%emt 0:00:18]} a6 {[%emt 0:03:01]} 8. Nxc6 $1 {[%emt 0:00:10][%mdl 4] outshines the older 8.0-0-0. B62: Sicilian: Richter-Rauzer: 6...e6: Unusual White 7th moves.} bxc6 {[%emt 0:00:05]} 9. O-O-O {[%emt 0:00:10][%cal Oe4e5] And now e5! would win.} Be7 {[%emt 0:22:55]} 10. f4 {[%emt 0:05:01] White is slightly better.} d5 {[%emt 0:00:00]} 11. Qg3 {[%emt 0:04:52]} O-O {[%emt 0:03:30] [#]} 12. Bd3 $146 {[%emt 0:16:50]} ({Predecessor:} 12. Be2 Rb8 13. b3 Kh8 14. Kb1 Qc7 15. Qe3 Re8 16. Bxf6 Bxf6 17. exd5 Qa5 18. d6 Bxc3 {½-½ (56) Hamann,H (2214)-Beth,N (2145) ICCF email 2010}) 12... Re8 {[%emt 0:05:27]} 13. h4 {[%emt 0:23:38][%cal Bh2h4,Bh4h5,Bh5h6][%mdl 32]} Rb8 {[%emt 0:05:58]} (13... Kh8 $14) 14. h5 $1 $40 {[%emt 0:04:48][%mdl 128] Black is in trouble. White stays focused until the end.} Kh8 {[%emt 0:03:23]} (14... Qb6 15. b3 Kh8 16. h6) (14... e5 $16) 15. h6 $18 {[%emt 0:07:21] White threatens hxg7+ and mate.} g6 {[%emt 0:00:28] [#]} 16. f5 $1 {[%emt 0:00:12]} Nd7 {[%emt 0:13:47] [#]} 17. Bf4 {[%emt 0:05:32]} Rb7 {[%emt 0:02:09][%cal Oe6e5]} 18. fxe6 {[%emt 0:02:41]} ({Weaker is} 18. Bxa6 e5 $14) 18... fxe6 {[%emt 0:00:20][%cal Oe6e5]} 19. exd5 {[%emt 0:01:58]} cxd5 {[%emt 0:02:15][%cal Oe6e5]} 20. Bxa6 {[%emt 0:05:02]} Ra7 {[%emt 0:10:02]} 21. Bb5 {[%emt 0:06:54] Strongly threatening Qe3.} Bf6 {[%emt 0:01:14]} 22. Bxd7 {[%emt 0:00:12]} Rxd7 {[%emt 0:00:33]} 23. Be5 {[%emt 0:00:06]} Kg8 {[%emt 0:01:12]} 24. Rdf1 {[%emt 0:00:50]} Bxe5 {[%emt 0:01:05]} 25. Qxe5 {[%emt 0:00:06]} Qc7 {[%emt 0:00:34]} 26. Re1 {[%emt 0:05:18]} Qxe5 {[%emt 0:02:01]} 27. Rxe5 {[%emt 0:00:02]} Kf7 {[%emt 0:00:00]} 28. Rhe1 {[%emt 0:03:38]} Bb7 {[%emt 0:00:40]} 29. Ne2 {[%emt 0:00:21]} d4 {[%emt 0:01:23]} 30. Nf4 {[%emt 0:00:22]} Rd6 {[%emt 0:01:18]} 31. Kd2 {[%emt 0:03:11]} Ra6 {[%emt 0:04:55]} 32. a3 {[%emt 0:00:11]} Rb6 {[%emt 0:00:20]} (32... Rc6 {was called for.} 33. Kc1 Bc8) 33. Kc1 {[%emt 0:00:36]} Rc6 {[%emt 0:04:38]} 34. g4 {[%emt 0:00:09]} Rec8 {[%emt 0:00:59]} (34... Ra6 {is a better defense.} 35. g5 Ba8) 35. R1e2 {[%emt 0:00:06]} (35. Nxe6 $142 Rxc2+ 36. Kb1) 35... Ba6 {[%emt 0:00:40]} 36. Rf2 {[%emt 0:02:38] Hoping for Nxe6+.} Ke7 {[%emt 0:03:13]} 37. Ra5 {[%emt 0:00:18]} Kd6 {[%emt 0:00:52]} (37... Bc4 {was necessary.} 38. Kd2 Ba2) 38. Rd2 {[%emt 0:01:07]} g5 {[%emt 0:02:10]} 39. Nh3 {[%emt 0:02:22]} (39. Rxd4+ Ke7 40. Rxg5 Rxc2+ 41. Kb1 Rh2 $16) ({Less strong is} 39. Rxg5 e5 $16) 39... d3 {[%emt 0:01:33][%cal Rc6c2]} 40. c3 {[%emt 0:00:13]} ({Not} 40. Nxg5 Rxc2+ 41. Rxc2 Rxc2+ 42. Kd1 Bb7 $14) 40... Rf8 {[%emt 0:02:32]} 41. Nxg5 {[%emt 0:32:14]} Rf4 {[%emt 0:31:03]} 42. Nxh7 {[%emt 0:00:00]} Rxg4 {[%emt 0:00:00]} 43. Nf6 {[%emt 0:00:00]} Rh4 {[%emt 0:00:00]} 44. Rh5 {[%emt 0:00:00]} Rxh5 {[%emt 0:00:00]} 45. Nxh5 {[%emt 0:00:00][%mdl 4096] Endgame KRB-KRN} e5 {[%emt 0:00:00]} 46. Nf6 {[%emt 0:00:00] Black must now prevent h7.} Rc8 {[%emt 0:00:00]} 47. h7 {[%emt 0:00:00]} Rh8 {[%emt 0:00:00]} 48. Rg2 {[%emt 0:00:00]} Bc4 {[%emt 0:00:00]} 49. Rg7 {[%emt 0:00:00]} Bd5 {[%emt 0:03:42]} 50. Rg8 {[%emt 0:00:00]} Rxh7 {[%emt 0:01:56]} 51. Rd8+ {[%emt 0:00:00]} Ke7 {[%emt 0:00:33]} 52. Rd7+ {[%emt 0:00:00]} Kxf6 {[%emt 0:00:04]} 53. Rxh7 {[%emt 0:00:00] KR-KB. White mates.} Kf5 {[%emt 0:02:20]} 54. Kd2 {[%emt 0:00:00]} Kf4 {[%emt 0:00:34]} 55. Rh4+ {[%emt 0:00:00]} Kg3 {[%emt 0:00:17]} 56. Rh5 {[%emt 0:00:00]} Kf4 {[%emt 0:00:35]} 57. Kxd3 {[%emt 0:00:00]} Bb3 {[%emt 0:00:40]} 58. Ke2 {[%emt 0:00:15]} Bc4+ {[%emt 0:00:23]} 59. Ke1 {[%emt 0:00:09]} e4 {[%emt 0:00:24]} 60. a4 {[%emt 0:00:13][%cal Ba3a4,Ba4a5,Ba5a6,Ba6a7][%mdl 32]} Bf7 {[%emt 0:00:18]} 61. Rc5 {[%emt 0:00:19]} Ke3 {[%emt 0:00:43]} 62. a5 {[%emt 0:00:07]} Kd3 {[%emt 0:00:30]} 63. a6 {[%emt 0:00:06]} e3 {[%emt 0:00:30]} 64. a7 {[%emt 0:00:06] Weighted Error Value: White=0.19 (very precise) /Black=0.40} 1-0

[Event "44th Chess Olympiad Open 2022"]
[Site "Chennai"]
[Date "2022.08.05"]
[Round "7.34"]
[White "Arenas, David"]
[Black "Subramaniam, Sumant"]
[Result "1-0"]
[ECO "A36"]
[WhiteElo "2426"]
[BlackElo "2152"]
[Annotator "TA"]
[PlyCount "63"]
[EventDate "2022.07.29"]
[EventType "team-tourn"]
[EventCountry "IND"]
[SourceTitle "playchess.com"]
[Source "ChessBase"]
[SourceQuality "1"]
[WhiteTeam "Colombia"]
[BlackTeam "Malaysia"]
[WhiteTeamCountry "COL"]
[BlackTeamCountry "MAS"]
[TimeControl "40/5400+30:1800+30"]

{[%evp 13,63,0,14,7,18,14,22,16,40,40,36,47,46,22,44,39,59,56,51,58,50,58,113,101,206,208,214,208,187,198,291,285,343,305,622,602,609,600,570,586,567,571,558,558,552,523,493,504,746,641,716,735]} 1. c4 {[%emt 0:00:08]} Nf6 {[%emt 0:00:27]} 2. g3 {[%emt 0:00:10]} g6 {[%emt 0:00:15]} 3. Bg2 {[%emt 0:00:11]} Bg7 {[%emt 0:00:41]} 4. Nc3 {[%emt 0:00:10]} c5 {[%emt 0:04:58]} 5. e4 {[%emt 0:00:14]} Nc6 {[%emt 0:00:06]} 6. Nge2 {[%emt 0:00:12]} d6 {[%emt 0:00:27]} 7. d3 $1 {[%emt 0:00:30][%mdl 4] is more profitable than 7.0-0 at the moment.} Bd7 {[%emt 0:00:56]} 8. Rb1 {[%emt 0:04:41] A36: Symmetrical English vs ...g6: 4 Bg2 Bg7.} Rb8 {[%emt 0:02:20]} 9. a3 {[%emt 0:01:32]} a6 {[%emt 0:00:26]} 10. b4 {[%emt 0:03:50] The position is equal.} cxb4 {[%emt 0:00:21]} 11. axb4 {[%emt 0:00:02]} b5 {[%emt 0:00:08]} 12. cxb5 {[%emt 0:01:45]} axb5 {[%emt 0:00:06] [#]} 13. d4 $146 {[%emt 0:01:49]} ({Predecessor:} 13. h3 Qc8 14. Be3 O-O 15. g4 Be6 16. O-O Nd7 17. Nd5 Bxd5 18. exd5 Nd8 19. Nd4 Bxd4 20. Bxd4 {1-0 (32) Damianou,I (2176)-Abatzidis,S (1826) Nicosia 2022}) 13... Qc8 {[%emt 0:03:31]} 14. O-O {[%emt 0:05:00]} h5 {[%emt 0:11:43]} 15. Bf4 {[%emt 0:15:45] Strongly threatening e5.} e5 {[%emt 0:26:55]} 16. dxe5 {[%emt 0:03:57]} dxe5 {[%emt 0:00:08]} 17. Bg5 {[%emt 0:00:24]} h4 {[%emt 0:10:14] Black is on the road to losing.} (17... O-O $14) 18. Nd5 $16 {[%emt 0:06:28]} Nxd5 {[%emt 0:04:04]} (18... Nh7 $16 19. Be3 (19. gxh4 Nxg5 20. hxg5 Bh3 $15) (19. Bxh4 g5 $17) 19... Nf8) 19. exd5 $18 {[%emt 0:00:05]} (19. Qxd5 Be6 20. Qd6 hxg3 21. hxg3 Bf8 $11) 19... Nd8 {[%emt 0:02:00]} 20. Rc1 {[%emt 0:03:37]} (20. Bxh4 $6 Bh3 $16) 20... Qa6 {[%emt 0:00:06]} 21. Nc3 {[%emt 0:01:21]} ({Much less strong is} 21. Bxh4 Qd6 $16) ({But not} 21. Rc7 $6 h3 22. Bh1 Qd6 $16) 21... f6 {[%emt 0:04:01]} (21... h3 {was necessary.}) 22. Be3 {[%emt 0:00:40]} ({Weaker is} 22. Bxh4 g5 $11) 22... hxg3 {[%emt 0:03:33]} 23. hxg3 {[%emt 0:00:50]} Bf8 $2 {[%emt 0:01:23] [#]} (23... f5 24. d6 e4) 24. Ne4 {[%emt 0:03:26] White is clearly winning.} f5 {[%emt 0:02:06]} 25. Ra1 {[%emt 0:00:45]} Qc8 {[%emt 0:01:08]} 26. Nf6+ {[%emt 0:01:14]} Kf7 {[%emt 0:00:34]} 27. Rc1 {[%emt 0:02:45]} Kxf6 {[%emt 0:01:57]} 28. Rxc8 {[%emt 0:00:06]} Rxc8 {[%emt 0:00:04]} 29. Qd2 {[%emt 0:01:25]} Nf7 {[%emt 0:00:59]} 30. Ra1 {[%emt 0:03:18]} Rc4 {[%emt 0:04:09]} 31. d6 {[%emt 0:01:36]} Bxd6 {[%emt 0:01:48]} 32. Ra6 {[%emt 0:09:40] Weighted Error Value: White=0.07 (flawless) /Black=0.32} 1-0

[Event "44th Chess Olympiad Open 2022"]
[Site "Chennai"]
[Date "2022.08.05"]
[Round "7.34"]
[White "Wong, Yinn Long"]
[Black "Cardoso Cardoso, Jose Gabriel"]
[Result "0-1"]
[ECO "D02"]
[WhiteElo "2381"]
[BlackElo "2493"]
[Annotator "ChessBase"]
[PlyCount "66"]
[EventDate "2022.07.29"]
[EventType "team-tourn"]
[EventCountry "IND"]
[SourceTitle "playchess.com"]
[Source "ChessBase"]
[SourceQuality "1"]
[WhiteTeam "Malaysia"]
[BlackTeam "Colombia"]
[WhiteTeamCountry "MAS"]
[BlackTeamCountry "COL"]
[TimeControl "40/5400+30:1800+30"]

1. d4 {[%emt 0:00:11]} Nf6 {[%emt 0:00:21]} 2. Nf3 {[%emt 0:00:11]} d5 {[%emt 0:00:06]} 3. Bf4 {[%emt 0:00:18]} c5 {[%emt 0:00:39]} 4. e3 {[%emt 0:00:07]} Nc6 {[%emt 0:00:18]} 5. Nbd2 {[%emt 0:00:06]} Bg4 {[%emt 0:01:02]} 6. c3 {[%emt 0:00:28]} e6 {[%emt 0:00:23]} 7. Qa4 {[%emt 0:01:29]} Nd7 {[%emt 0:05:09]} 8. Ne5 {[%emt 0:06:54]} Ncxe5 {[%emt 0:16:21]} 9. Bxe5 {[%emt 0:01:16]} cxd4 {[%emt 0:01:33]} 10. Bxd4 {[%emt 0:12:03]} Bf5 {[%emt 0:06:42]} 11. c4 {[%emt 0:11:12]} dxc4 {[%emt 0:01:55]} 12. Nxc4 {[%emt 0:06:42]} b5 {[%emt 0:01:01]} 13. Qxb5 {[%emt 0:00:50]} Rb8 {[%emt 0:00:05]} 14. Qc6 {[%emt 0:04:40]} Bb4+ {[%emt 0:00:09]} 15. Bc3 {[%emt 0:00:24]} Bxc3+ {[%emt 0:02:19]} 16. bxc3 {[%emt 0:02:29]} O-O {[%emt 0:00:14]} 17. Be2 {[%emt 0:04:08]} Rc8 {[%emt 0:06:05]} 18. Qd6 {[%emt 0:01:46]} Nc5 {[%emt 0:10:58]} 19. Rd1 {[%emt 0:09:05]} Ne4 {[%emt 0:06:21]} 20. Qe5 {[%emt 0:04:08]} Qg5 {[%emt 0:03:40]} 21. g4 {[%emt 0:15:25]} Rc5 {[%emt 0:08:53]} 22. h4 {[%emt 0:01:03]} Qe7 {[%emt 0:04:10]} 23. Qf4 {[%emt 0:01:04]} Nxc3 {[%emt 0:01:33]} 24. gxf5 {[%emt 0:06:12]} Rxf5 {[%emt 0:00:06]} 25. Qd6 {[%emt 0:01:18]} Qb7 {[%emt 0:01:24]} 26. Rg1 {[%emt 0:01:55]} Nxe2 {[%emt 0:00:40]} 27. Rg5 {[%emt 0:03:29]} Nc3 {[%emt 0:02:11]} 28. Qd4 {[%emt 0:04:43]} Qh1+ {[%emt 0:00:41]} 29. Kd2 {[%emt 0:00:01]} Qxd1+ {[%emt 0:00:19]} 30. Kxc3 {[%emt 0:00:04]} Qxd4+ {[%emt 0:00:35]} 31. Kxd4 {[%emt 0:00:25]} Rd8+ {[%emt 0:00:11]} 32. Kc3 {[%emt 0:00:24]} Rxg5 {[%emt 0:00:07]} 33. hxg5 {[%emt 0:00:04]} h5 {[%emt 0:00:03]} 0-1